bitfinex-derivatives/quotes_SOLF0:USTF0_20250101
["timestamp","ask_amount","ask_price","bid_price","bid_amount"]
[1735762250268,12.79309283,193.86,193.78,11.76063776]
[1735762250565,15.89309283,193.86,193.78,7.09093776]
[1735762250765,12.79309283,193.83,193.77,7.09093776]
[1735762251570,1.6078,193.82,193.74,7.09093776]
[1735762251867,3.1,193.81,193.74,7.09093776]
[1735762252673,3.1,193.84,193.74,10.19093776]
[1735762252872,3.1,193.84,193.75,12.79309283]
[1735762253071,15.89309283,193.88,193.75,12.79309283]
[1735762253268,15.89309283,193.88,193.74,3.1]
[1735762253572,3.1,193.88,193.74,3.1]
[1735762253774,3.1,193.88,193.75,3.9775087]
[1735762253975,15.89309283,193.88,193.79,2.585]
[1735762257170,15.89309283,193.88,193.77,2.5852]
[1735762257776,15.89309283,193.88,193.78,2.5852]
[1735762258877,15.89309283,193.88,193.76,2.5854]
[1735762259178,15.89309283,193.88,193.74,3.1]
[1735762259477,15.89309283,193.88,193.79,2.585]
[1735762259976,15.89309283,193.88,193.78,2.5852]
[1735762261281,12.79309283,193.88,193.76,12.79309283]
[1735762261470,4.6084,193.89,193.77,3.0651]
[1735762262073,14.28599283,193.91,193.79,12.79309283]
[1735762262375,12.79309283,193.95,193.82,12.79309283]
[1735762262576,12.79309283,193.95,193.86,2.5841]
[1735762262878,15.89309283,193.95,193.86,2.5841]
[1735762263681,15.89309283,193.95,193.85,3.1]
[1735762265178,15.89309283,193.95,193.87,2.584]
[1735762265482,12.79309283,193.95,193.85,3.1]
[1735762266083,12.79309283,193.95,193.86,2.5841]
[1735762266380,12.79309283,193.95,193.85,3.1]
[1735762269085,12.79309283,193.92,193.8,30.15663904]
[1735762269281,12.79309283,193.89,193.8,30.15663904]
[1735762270586,12.79309283,193.89,193.8,4.1756]
[1735762272789,12.79309283,193.89,193.77,6.1651]
[1735762272995,12.79309283,193.89,193.79,2.5851]
[1735762277796,12.79309283,193.89,193.77,6.1651]
[1735762277995,12.79309283,193.89,193.81,2.5848]
[1735762278197,12.79309283,193.89,193.77,13.25603776]
[1735762278494,12.79309283,193.89,193.8,2.585]
[1735762279992,12.79309283,193.89,193.77,10.15603776]
[1735762280194,12.79309283,193.86,193.77,12.74123776]
[1735762280396,12.79309283,193.86,193.78,3.1]
[1735762280591,12.79309283,193.86,193.77,8.65343776]
[1735762280798,12.79309283,193.86,193.77,7.09093776]
[1735762280997,15.89309283,193.86,193.77,7.09093776]
[1735762281198,15.89309283,193.86,193.76,2.5855]
[1735762282599,3.1,193.86,193.75,11.68303776]
[1735762282799,4.6689,193.89,193.76,16.77333144]
[1735762283001,1.5689,193.89,193.77,3.98023861]
[1735762283201,1.5689,193.89,193.79,2.585]
[1735762283399,1.5689,193.89,193.77,7.09093776]
[1735762284202,1.5689,193.89,193.8,2.5848]
[1735762290213,8.19808482,193.86,193.8,2.5848]
[1735762292507,8.19808482,193.86,193.8,5.6848]
[1735762299313,8.19808482,193.86,193.81,3.99206818]
[1735762299518,8.19808482,193.86,193.8,5.6848]
[1735762299714,8.19808482,193.86,193.81,3.99213669]
[1735762299916,8.19808482,193.86,193.8,5.6848]
[1735762300217,8.19808482,193.86,193.81,3.99193743]
[1735762300417,8.19808482,193.86,193.8,5.6848]
[1735762300614,8.19808482,193.86,193.81,3.99200065]
[1735762300817,8.19808482,193.86,193.8,5.6848]
[1735762301016,8.19808482,193.86,193.81,3.99160725]
[1735762301311,8.19808482,193.86,193.81,4.48101968]
[1735762302015,8.19808482,193.86,193.8,34.25073904]
[1735762302818,8.19808482,193.86,193.8,12.77573776]
[1735762303811,8.19808482,193.86,193.81,4.48321728]
[1735762304618,8.19808482,193.86,193.81,7.09093776]
[1735762305214,8.19808482,193.86,193.81,9.67573776]
[1735762312213,8.19808482,193.86,193.81,7.09093776]
[1735762312723,8.19808482,193.82,193.8,28.56593904]
[1735762313929,8.19808482,193.82,193.78,28.56593904]
[1735762314120,8.19808482,193.82,193.79,3.9983383]
[1735762314319,8.19808482,193.82,193.78,28.56593904]
[1735762314521,8.19808482,193.82,193.79,3.99838132]
[1735762314721,8.19808482,193.82,193.78,28.56593904]
[1735762314917,8.19808482,193.82,193.79,3.99813372]
[1735762315122,8.19808482,193.82,193.78,7.09093776]
[1735762315322,8.19808482,193.8,193.79,3.99817142]
[1735762316116,8.19808482,193.8,193.78,7.09093776]
[1735762316722,11.29808482,193.8,193.78,7.09093776]
[1735762316925,11.29808482,193.8,193.76,7.09093776]
[1735762317126,8.19808482,193.78,193.76,7.09093776]
[1735762318026,8.19808482,193.78,193.72,7.09093776]
[1735762318228,8.19808482,193.74,193.72,7.09093776]
[1735762318826,8.19808482,193.74,193.7,7.09093776]
[1735762319030,8.19808482,193.72,193.7,7.09093776]
[1735762319528,8.19808482,193.72,193.68,7.09093776]
[1735762319730,8.19808482,193.72,193.69,3.9918722]
[1735762319927,8.19808482,193.72,193.68,7.09093776]
[1735762320226,8.19808482,193.72,193.69,3.99185379]
[1735762320422,8.19808482,193.72,193.67,31.97276122]
[1735762320727,8.19808482,193.72,193.68,3.99160423]
[1735762320926,8.19808482,193.72,193.69,3.99160423]
[1735762321127,8.19808482,193.72,193.67,31.97276122]
[1735762321328,8.19808482,193.72,193.68,3.99162721]
[1735762321524,1.5572,193.83,193.67,28.56593904]
[1735762321525,8.19808482,193.7,193.67,28.56593904]
[1735762322226,8.19808482,193.7,193.64,9.67793776]
[1735762322426,8.19808482,193.7,193.65,3.98702794]
[1735762322626,8.19808482,193.7,193.64,9.67793776]
[1735762322927,8.19808482,193.7,193.65,3.98618487]
[1735762323132,8.19808482,193.7,193.64,7.09093776]
[1735762323429,8.19808482,193.7,193.65,3.98524957]
[1735762323624,8.19808482,193.7,193.64,7.09093776]
[1735762323823,8.19808482,193.7,193.63,36.8461861]
[1735762323824,8.19808482,193.68,193.63,28.56593904]
[1735762324026,32.8128716,193.78,193.67,8.19808482]
[1735762324227,8.19808482,193.74,193.67,8.19808482]
[1735762324525,8.19808482,193.74,193.67,10.78478482]
[1735762324726,8.19808482,193.74,193.67,8.19808482]
[1735762324929,8.19808482,193.72,193.66,3.1]
[1735762326032,8.19808482,193.72,193.66,5.6868]
[1735762326432,8.19808482,193.74,193.67,10.78468482]
[1735762326632,8.19808482,193.76,193.69,8.19808482]
[1735762327533,8.19808482,193.76,193.71,2.5861]
[1735762328929,8.19808482,193.78,193.71,10.78418482]
[1735762330132,8.19808482,193.8,193.73,8.19808482]
[1735762330329,8.19808482,193.82,193.75,8.19808482]
[1735762330730,8.19808482,193.82,193.76,2.5855]
[1735762330928,8.19808482,193.84,193.77,8.19808482]
[1735762331933,8.19808482,193.84,193.77,11.29808482]
[1735762332131,8.19808482,193.86,193.79,8.19808482]
[1735762332929,8.19808482,193.86,193.8,2.5849]
[1735762338035,8.19808482,193.86,193.79,8.19808482]
[1735762338241,8.19808482,193.86,193.78,7.1271]
[1735762338242,8.19808482,193.84,193.78,4.542]
[1735762339941,8.19808482,193.82,193.76,3.1]
[1735762340542,8.19808482,193.82,193.75,10.78358482]
[1735762340841,8.19808482,193.82,193.75,13.88358482]
[1735762341042,8.19808482,193.82,193.76,2.5855]
[1735762342849,8.19808482,193.82,193.75,11.29808482]
[1735762343045,8.19808482,193.82,193.77,2.5853]
[1735762343441,8.19808482,193.82,193.77,10.78338482]
[1735762345241,8.19808482,193.84,193.77,8.19808482]
[1735762345442,8.19808482,193.84,193.78,2.5852]
[1735762346642,8.19808482,193.86,193.79,8.19808482]
[1735762346843,1.6013,193.89,193.81,8.19808482]
[1735762347141,8.19808482,193.88,193.82,3.1]
[1735762347342,8.19808482,193.88,193.84,2.5844]
[1735762348942,8.19808482,193.88,193.82,3.1]
[1735762349147,8.19808482,193.88,193.83,2.5846]
[1735762353649,1.5556,193.96,193.85,2.5843]
[1735762353853,8.19808482,193.93,193.85,8.19808482]
[1735762354542,8.19808482,193.93,193.87,10.78198482]
[1735762354748,8.19808482,193.93,193.87,11.29808482]
[1735762355244,8.19808482,193.95,193.87,11.29808482]
[1735762355453,8.19808482,193.95,193.89,2.5836]
[1735762355853,8.19808482,193.95,193.89,10.78168482]
[1735762357952,8.19808482,193.95,193.89,8.19808482]
[1735762358153,8.19808482,193.95,193.9,2.5836]
[1735762358457,32.08291191,194.02,193.93,8.19808482]
[1735762358655,8.19808482,194.01,193.95,8.19808482]
[1735762358854,8.19808482,194.01,193.95,11.29808482]
[1735762360451,8.19808482,194.01,193.96,2.5828]
[1735762361258,4.6946,194.07,193.96,2.5828]
[1735762361458,8.19808482,194.02,193.96,2.5828]
[1735762361655,8.19808482,194.02,193.95,13.88098482]
[1735762364352,4.6946,194.07,193.95,13.88098482]
[1735762364557,8.19808482,194.02,193.96,2.5828]
[1735762365259,1.5946,194.07,193.97,8.19808482]
[1735762365455,8.19808482,194.06,193.99,8.19808482]
[1735762365659,8.19808482,194.06,193.96,3.084]
[1735762365660,8.19808482,194.06,194.0,3.1]
[1735762367263,4.7027,194.11,194.0,11.29808482]
[1735762367464,8.19808482,194.08,194.0,11.29808482]
[1735762367764,8.19808482,194.08,194.01,2.5821]
[1735762368755,8.19808482,194.08,194.0,11.29808482]
[1735762371567,8.19808482,194.08,194.0,13.88028482]
[1735762372665,3.1,194.2,194.06,8.19808482]
[1735762372864,53.68,194.3,194.07,3.1]
[1735762372865,8.19808482,194.13,194.07,3.1]
[1735762375068,8.19808482,194.11,194.01,3.0607]
[1735762375272,8.19808482,194.09,194.02,11.29808482]
[1735762375771,8.19808482,194.07,194.02,3.1]
[1735762378174,8.19808482,194.07,194.01,8.7428]
[1735762380673,3.1,194.17,194.02,8.19808482]
[1735762380880,8.19808482,194.12,194.01,6.1607]
[1735762381080,8.19808482,194.12,194.04,8.19808482]
[1735762381576,8.19808482,194.14,194.07,2.5812]
[1735762381881,8.19808482,194.14,194.08,8.19808482]
[1735762382382,8.19808482,194.15,194.08,10.77918482]
[1735762382681,8.19808482,194.11,194.03,10.19093776]
[1735762382982,8.19808482,194.11,194.03,18.38902258]
[1735762383184,8.19808482,194.11,194.05,8.19808482]
[1735762383677,8.19808482,194.11,194.05,10.77968482]
[1735762385274,8.19808482,194.08,194.01,15.28902258]
[1735762385477,8.19808482,194.08,194.02,3.1]
[1735762387586,8.19808482,194.08,194.02,5.682]
[1735762391484,8.19808482,194.08,194.02,12.77293776]
[1735762391787,8.19808482,194.08,194.02,7.09093776]
[1735762392178,8.19808482,194.08,194.02,10.19093776]
[1735762392985,8.19808482,194.08,194.03,2.5818]
[1735762394284,8.19808482,194.08,194.04,4.40865889]
[1735762395490,8.19808482,194.08,194.03,28.56593904]
[1735762396485,8.19808482,194.08,194.03,31.14783904]
[1735762397189,3.1,194.16,194.04,2.5817]
[1735762397488,8.19808482,194.1,194.04,2.5817]
[1735762397890,8.19808482,194.1,194.05,4.4150999]
[1735762398486,3.1,194.17,194.06,2.5814]
[1735762398681,8.19808482,194.12,194.06,2.5814]
[1735762398985,3.1,194.17,194.07,3.1]
[1735762399183,1.5316,194.18,194.07,13.87928482]
[1735762399184,8.19808482,194.12,194.07,13.87928482]
[1735762399888,8.19808482,194.12,194.07,11.29808482]
[1735762400085,8.19808482,194.12,194.09,7.09093776]
[1735762400486,143.0270497,194.36,194.11,8.19808482]
[1735762400686,1.6189,194.29,194.12,3.1]
[1735762400888,8.19808482,194.21,194.14,8.19808482]
[1735762401084,3.1,194.28,194.14,8.19808482]
[1735762401279,8.19808482,194.21,194.14,8.19808482]
[1735762404390,8.19808482,194.21,194.14,10.77848482]
[1735762404590,8.19808482,194.23,194.16,8.19808482]
[1735762404795,8.19808482,194.23,194.17,3.1]
[1735762405385,1.5686,194.27,194.17,3.1]
[1735762405591,8.19808482,194.24,194.17,3.1]
[1735762405997,8.19808482,194.22,194.17,3.1]
[1735762406190,1.5686,194.27,194.17,3.1]
[1735762406390,8.19808482,194.24,194.17,3.1]
[1735762407595,8.19808482,194.24,194.18,3.1]
[1735762408194,1.5686,194.27,194.18,3.1]
[1735762408195,8.19808482,194.22,194.18,3.1]
[1735762408993,8.19808482,194.24,194.18,3.1]
[1735762410694,8.19808482,194.24,194.18,3.08]
[1735762411292,8.19808482,194.24,194.16,8.19808482]
[1735762411494,8.19808482,194.24,194.17,3.08]
[1735762412499,8.19808482,194.22,194.17,3.08]
[1735762412700,8.19808482,194.2,194.15,3.08]
[1735762413001,8.19808482,194.22,194.15,3.08]
[1735762413596,8.19808482,194.22,194.16,11.27808482]
[1735762414101,8.19808482,194.22,194.16,3.08]
[1735762414302,8.19808482,194.22,194.15,3.08]
[1735762415598,8.19808482,194.2,194.14,8.19808482]
[1735762415796,8.19808482,194.2,194.14,3.08]
[1735762416398,8.19808482,194.21,194.14,11.27808482]
[1735762417301,1.5686,194.27,194.14,11.27808482]
[1735762417500,8.19808482,194.2,194.14,11.27808482]
[1735762419499,8.19808482,194.18,194.14,3.08]
[1735762420197,8.19808482,194.16,194.09,3.1015]
[1735762420401,8.19808482,194.16,194.1,3.08]
[1735762420605,8.19808482,194.12,194.07,3.08]
[1735762421502,8.19808482,194.12,194.05,11.27808482]
[1735762424401,8.19808482,194.12,194.05,3.08]
[1735762427203,8.19808482,194.12,194.06,8.19808482]
[1735762429706,8.19808482,194.12,194.05,3.08]
[1735762435400,8.19808482,194.12,194.04,8.19808482]
[1735762435600,8.19808482,194.08,194.02,3.08]
[1735762436203,8.19808482,194.1,194.03,8.19808482]
[1735762437208,8.19808482,194.08,194.03,8.19808482]
[1735762438401,8.19808482,194.08,194.02,3.08]
[1735762439400,8.19808482,194.1,194.03,8.19808482]
[1735762439604,8.19808482,194.1,194.05,8.19808482]
[1735762439903,1.5725,194.15,194.02,5.662]
[1735762440112,8.19808482,194.11,194.05,8.19808482]
[1735762441113,8.19808482,194.12,194.05,8.19808482]
[1735762441411,8.19808482,194.15,194.09,8.19808482]
[1735762441913,1.5238,194.16,194.09,8.19808482]
[1735762441914,8.19808482,194.17,194.09,8.19808482]
[1735762442610,33.14631713,194.2,194.09,8.19808482]
[1735762442807,8.19808482,194.17,194.09,8.19808482]
[1735762443206,8.19808482,194.15,194.09,8.19808482]
[1735762444808,8.19808482,194.15,194.08,3.08]
[1735762445010,8.19808482,194.11,194.08,3.08]
[1735762450614,8.19808482,194.09,194.01,7.09093776]
[1735762450816,8.19808482,194.07,194.02,3.08]
[1735762451118,8.19808482,194.07,194.01,7.09093776]
[1735762451720,8.19808482,194.07,193.98,31.73573904]
[1735762451918,8.19808482,194.07,194.0,8.19808482]
[1735762453726,8.19808482,194.05,193.98,11.36788482]
[1735762453926,8.19808482,194.03,193.96,28.56593904]
[1735762454117,8.19808482,194.03,193.97,3.08]
[1735762454519,8.19808482,194.01,193.97,3.08]
[1735762455324,8.19808482,194.01,193.95,8.19808482]
[1735762455523,8.19808482,194.01,193.95,11.27808482]
[1735762456126,8.19808482,194.01,193.95,8.19808482]
[1735762456429,8.19808482,193.99,193.93,2.9911]
[1735762456628,8.19808482,193.97,193.93,3.08]
[1735762456923,8.19808482,193.97,193.92,7.09093776]
[1735762457129,8.19808482,193.97,193.91,3.08]
[1735762457625,8.19808482,193.97,193.9,36.76402386]
[1735762457832,8.19808482,193.95,193.9,28.56593904]
[1735762458129,8.19808482,193.95,193.87,10.24383776]
[1735762458324,8.19808482,193.95,193.88,3.08]
[1735762458530,8.19808482,193.95,193.88,11.27808482]
[1735762461931,1.5829,194.01,193.9,8.19808482]
[1735762462129,1.5829,194.01,193.92,8.19808482]
[1735762462434,8.19808482,194.0,193.94,8.19808482]
[1735762464137,3.1,194.05,193.94,8.19808482]
[1735762464330,8.19808482,194.01,193.94,8.19808482]
[1735762465134,8.19808482,194.01,193.94,10.78108482]
[1735762465532,8.19808482,194.01,193.94,8.19808482]
[1735762471137,8.19808482,193.99,193.93,3.1]
[1735762471538,8.19808482,193.99,193.92,8.19808482]
[1735762471735,8.19808482,193.97,193.92,11.27808482]
[1735762471940,8.19808482,193.97,193.92,3.08]
[1735762472441,8.19808482,193.95,193.92,3.08]
[1735762478251,8.19808482,193.93,193.88,11.27808482]
[1735762478442,8.19808482,193.93,193.87,3.1529]
[1735762478647,8.19808482,193.93,193.87,6.2329]
[1735762479349,1.5903,193.98,193.87,14.43098482]
[1735762479548,8.19808482,193.94,193.87,17.01498482]
[1735762482554,8.19808482,193.94,193.87,14.43098482]
[1735762482960,8.19808482,193.92,193.87,6.2329]
[1735762483856,8.19808482,193.92,193.87,3.1529]
[1735762485957,8.19808482,193.9,193.84,3.08]
[1735762486359,8.19808482,193.9,193.83,18.36902258]
[1735762486655,8.19808482,193.88,193.83,10.17093776]
[1735762486852,8.19808482,193.88,193.83,3.08]
[1735762487057,8.19808482,193.88,193.81,19.93692258]
[1735762487362,8.19808482,193.88,193.81,23.01692258]
[1735762487751,8.19808482,193.86,193.81,23.01692258]
[1735762488761,8.19808482,193.86,193.81,15.92598482]
[1735762489157,8.19808482,193.86,193.8,7.09093776]
[1735762490362,8.19808482,193.86,193.79,7.09093776]
[1735762490760,8.19808482,193.86,193.79,9.67593776]
[1735762491662,8.19808482,193.86,193.79,2.585]
[1735762492361,8.19808482,193.86,193.78,8.19808482]
[1735762496260,8.19808482,193.84,193.78,10.78328482]
[1735762499663,8.19808482,193.84,193.77,5.6853]
[1735762499967,8.19808482,193.84,193.78,8.19808482]
[1735762500574,8.19808482,193.8,193.76,3.0719]
[1735762500762,8.19808482,193.8,193.73,28.56593904]
[1735762500957,1.5626,193.88,193.73,28.56593904]
[1735762501266,9.08797963,194.72,193.81,8.19808482]
[1735762501267,8.19808482,193.87,193.81,8.19808482]
[1735762501565,8.19808482,193.89,193.83,2.5845]
[1735762502867,8.19808482,193.89,193.83,8.19808482]
[1735762503062,8.19808482,193.92,193.85,8.19808482]
[1735762503370,8.19808482,193.92,193.87,8.19808482]
[1735762504169,8.19808482,193.94,193.87,8.19808482]
[1735762504866,8.19808482,193.94,193.87,10.78198482]
[1735762507067,8.19808482,193.94,193.88,2.5839]
[1735762507972,1.5751,193.97,193.87,8.19808482]
[1735762508272,8.19808482,193.97,193.89,8.19808482]
[1735762508572,8.19808482,193.99,193.94,2.5831]
[1735762509572,3.08,194.04,193.94,2.5831]
[1735762509873,8.19808482,193.99,193.92,8.19808482]
[1735762510172,8.19808482,193.99,193.95,2.5829]
[1735762510974,1.619,194.06,193.95,2.5829]
[1735762511165,8.19808482,194.01,193.95,2.5829]
[1735762512671,8.19808482,193.99,193.91,4.6494]
[1735762512973,8.19808482,193.97,193.91,12.84748482]
[1735762513175,8.19808482,193.97,193.92,2.5833]
[1735762513677,8.19808482,193.97,193.93,2.5831]
[1735762514073,8.19808482,193.99,193.93,8.19808482]
[1735762514268,8.19808482,194.01,193.93,8.19808482]
[1735762514775,8.19808482,194.01,193.97,2.5826]
[1735762515174,8.19808482,194.01,193.95,8.19808482]
[1735762515774,8.19808482,194.01,193.96,2.5828]
[1735762515979,8.19808482,194.01,193.95,8.19808482]
[1735762516579,8.19808482,194.01,193.96,3.08]
[1735762518377,8.19808482,193.99,193.94,2.583]
[1735762518577,8.19808482,193.97,193.93,3.08]
[1735762519975,8.19808482,193.97,193.91,3.08]
[1735762520384,8.19808482,193.97,193.9,11.24208482]
[1735762520580,8.19808482,193.95,193.9,3.044]
[1735762522588,8.19808482,193.95,193.91,2.5835]
[1735762522983,8.19808482,193.97,193.93,2.5832]
[1735762523385,8.19808482,193.99,193.93,8.19808482]
[1735762523788,8.19808482,194.01,193.95,8.19808482]
[1735762524489,8.19808482,194.01,193.96,2.5828]
[1735762524883,8.19808482,194.01,193.95,8.19808482]
[1735762525081,8.19808482,193.99,193.94,3.08]
[1735762526587,8.19808482,193.99,193.94,5.6631]
[1735762526980,8.19808482,193.99,193.9,3.044]
[1735762527289,8.19808482,193.97,193.9,6.124]
[1735762527689,8.19808482,193.97,193.91,2.5835]
[1735762528091,8.19808482,193.97,193.9,6.124]
[1735762528287,8.19808482,193.95,193.86,7.09093776]
[1735762528487,8.19808482,193.93,193.86,3.08]
[1735762528792,8.19808482,193.93,193.86,5.664]
[1735762528983,8.19808482,193.93,193.86,3.08]
[1735762529792,8.19808482,193.93,193.87,2.5839]
[1735762530392,8.19808482,193.93,193.88,2.5838]
[1735762530597,1.5478,193.98,193.88,2.5838]
[1735762530792,8.19808482,193.94,193.88,2.5838]
[1735762530991,8.19808482,193.94,193.87,10.78198482]
[1735762531791,8.19808482,193.94,193.87,2.5839]
[1735762532688,8.19808482,193.92,193.85,5.6643]
[1735762532893,8.19808482,193.92,193.85,3.08]
[1735762533994,1.5478,193.98,193.86,8.19808482]
[1735762534292,8.19808482,193.95,193.88,8.19808482]
[1735762534990,8.19808482,193.95,193.9,2.5836]
[1735762535590,8.19808482,193.99,193.92,8.19808482]
[1735762536395,8.19808482,194.01,193.94,8.19808482]
[1735762536790,8.19808482,193.99,193.94,10.78118482]
[1735762537391,8.19808482,194.01,193.95,2.5828]
[1735762537591,3.08,194.04,193.95,3.08]
[1735762537792,8.19808482,194.06,193.98,8.19808482]
[1735762538193,1.4716,194.07,193.95,15.86387012]
[1735762538692,1.4716,194.07,193.99,2.5823]
[1735762538888,1.4716,194.07,193.95,15.86387012]
[1735762539391,1.4716,194.07,193.98,2.5824]
[1735762539696,1.4716,194.07,193.95,15.86387012]
[1735762540090,1.4716,194.07,193.99,2.5823]
[1735762540290,1.4716,194.07,194.0,3.08]
[1735762541495,1.4716,194.07,194.0,5.6623]
[1735762542698,12.78387012,194.08,194.0,5.6623]
[1735762542895,12.78387012,194.08,194.02,2.582]
[1735762543098,15.86387012,194.14,194.01,12.78387012]
[1735762543292,15.86387012,194.14,194.01,15.87007012]
[1735762543994,15.86387012,194.14,194.04,2.5817]
[1735762544194,15.86387012,194.14,194.04,3.08]
[1735762545497,12.78387012,194.11,194.04,3.08]
[1735762545697,12.78387012,194.11,194.01,3.0862]
[1735762546099,12.78387012,194.08,194.0,3.08]
[1735762546603,1.5254,194.07,194.0,3.08]
[1735762547702,1.5254,194.07,193.97,3.08]
[1735762548099,12.78387012,194.05,193.95,3.08]
[1735762548302,12.78387012,194.05,193.94,3.0625]
[1735762548505,12.78387012,194.02,193.94,6.1425]
[1735762548706,12.78387012,194.02,193.94,3.08]
[1735762549901,12.78387012,194.02,193.92,1.5118]
[1735762549902,12.78387012,194.02,193.92,3.08]
[1735762550201,12.78387012,193.99,193.92,3.08]
[1735762550501,12.78387012,193.99,193.91,3.08]
[1735762551509,12.78387012,193.99,193.91,5.6635]
[1735762551704,12.78387012,194.02,193.91,3.08]
[1735762553806,12.78387012,194.02,193.92,2.5833]
[1735762554205,12.78387012,194.02,193.91,3.08]
[1735762554407,12.78387012,193.99,193.91,3.08]
[1735762556402,15.86387012,194.02,193.92,2.5833]
[1735762557602,15.86387012,194.02,193.91,3.08]
[1735762560106,12.78387012,193.99,193.91,3.08]
[1735762560305,12.78387012,193.99,193.87,12.78387012]
[1735762560306,12.78387012,193.99,193.86,30.12643904]
[1735762560608,3.2101,193.98,193.87,3.08]
[1735762560808,3.08,193.97,193.87,3.08]
[1735762561308,3.08,193.97,193.87,5.6639]
[1735762561507,12.78387012,193.96,193.86,3.08]
[1735762561906,12.78387012,193.96,193.84,51.27610206]
[1735762562107,12.78387012,193.96,193.85,3.96015228]
[1735762562308,12.78387012,193.96,193.84,53.86050206]
[1735762562500,12.78387012,193.96,193.85,3.95958404]
[1735762562705,12.78387012,193.96,193.85,2.5843]
[1735762563309,12.78387012,193.96,193.85,5.6643]
[1735762563508,12.78387012,193.96,193.85,3.08]
[1735762563711,12.78387012,193.93,193.83,3.0963]
[1735762563910,12.78387012,193.93,193.81,44.42980916]
[1735762564208,3.08,193.92,193.81,44.42980916]
[1735762564412,3.08,193.92,193.82,3.96066864]
[1735762564610,3.08,193.92,193.81,15.86387012]
[1735762565514,3.08,193.92,193.83,2.5844]
[1735762567419,3.08,193.92,193.82,2.5847]
[1735762567616,3.08,193.92,193.81,15.86387012]
[1735762568423,3.08,193.92,193.81,18.44857012]
[1735762569124,3.08,193.92,193.81,15.86387012]
[1735762569324,3.08,193.92,193.82,2.5847]
[1735762570120,3.08,193.92,193.81,15.86387012]
[1735762570419,3.2101,193.98,193.81,15.86387012]
[1735762570626,3.2101,193.98,193.84,12.78387012]
[1735762570923,12.78387012,194.01,193.87,12.78387012]
[1735762571126,12.78387012,194.01,193.88,4.6308]
[1735762571315,3.1057,194.08,193.9,12.78387012]
[1735762571517,15.86387012,194.04,193.9,12.78387012]
[1735762571927,12.78387012,194.04,193.9,12.78387012]
[1735762572331,12.78387012,194.04,193.95,2.5829]
[1735762572531,12.78387012,194.04,193.94,3.08]
[1735762573528,12.78387012,194.04,193.94,5.6631]
[1735762575428,12.78387012,194.01,193.94,3.08]
[1735762577733,12.78387012,194.04,193.94,3.08]
[1735762578537,12.78387012,194.04,193.95,2.5829]
[1735762578738,15.52,194.35,193.94,3.08]
[1735762579043,12.78387012,194.15,194.03,12.78387012]
[1735762579244,12.78387012,194.15,194.04,3.08]
[1735762579441,3.08,194.17,194.04,3.08]
[1735762579737,12.78387012,194.15,194.05,2.5816]
[1735762579938,12.78387012,194.15,194.04,3.08]
[1735762579939,12.78387012,194.15,194.04,6.2461]
[1735762580142,12.78387012,194.12,194.03,3.08]
[1735762580443,3.08,194.17,194.03,3.08]
[1735762580444,12.78387012,194.09,194.03,3.08]
[1735762580637,12.78387012,194.2,193.99,5.50238506]
[1735762580638,12.78387012,194.06,193.99,4.6388]
[1735762581540,12.78387012,194.06,193.99,1.5588]
[1735762583840,12.78387012,194.06,193.98,3.08]
[1735762588043,12.78387012,194.1,194.01,2.5821]
[1735762588249,15.86387012,194.1,194.01,2.5821]
[1735762588445,12.78387012,194.1,194.01,2.5821]
[1735762588842,12.78387012,194.1,193.98,3.08]
[1735762589538,12.78387012,194.1,194.01,2.5821]
[1735762591848,12.78387012,194.1,194.0,2.5823]
[1735762592748,12.78387012,194.1,193.98,3.08]
[1735762592949,12.78387012,194.1,193.99,2.5824]
[1735762593147,12.78387012,194.1,193.98,3.08]
[1735762593343,12.78387012,194.1,194.0,12.78387012]
[1735762594847,12.78387012,194.1,194.0,15.36617012]
[1735762596648,12.78387012,194.1,194.0,12.78387012]
[1735762597249,12.78387012,194.1,193.99,2.5824]
[1735762597751,12.78387012,194.1,193.97,14.39117012]
[1735762597956,1.506,194.09,193.98,5.6626]
[1735762599155,1.506,194.09,193.99,2.5824]
[1735762599653,1.506,194.09,193.97,1.6073]
[1735762603048,12.78387012,194.04,193.94,36.04496093]
[1735762604954,12.78387012,194.04,193.94,38.62806093]
[1735762605155,12.78387012,194.04,193.94,36.04496093]
[1735762605353,15.86387012,194.07,193.94,36.04496093]
[1735762605654,15.86387012,194.07,193.96,2.5827]
[1735762607853,15.86387012,194.07,193.94,36.04496093]
[1735762608155,15.86387012,194.07,193.95,2.5829]
[1735762608357,15.86387012,194.07,193.93,4.6919]